bitfinex-derivatives/quotes_SOLF0:USTF0_20241021
["timestamp","ask_amount","ask_price","bid_price","bid_amount"]
[1729530640983,7.44,166.08,165.87,7.44]
[1729530641384,10.4519,166.08,165.96,3.0139]
[1729530641588,7.44,166.08,165.87,7.44]
[1729530641785,7.44,166.08,165.88,7.44]
[1729530642083,3.0125,166.05,165.93,3.0145]
[1729530642283,3.0125,166.05,165.87,7.44]
[1729530642585,3.0125,166.05,165.94,3.0143]
[1729530642787,3.07597371,166.05,165.87,7.44]
[1729530642984,65.12,166.06,165.92,3.0147]
[1729530643381,65.12,166.06,165.87,7.44]
[1729530643382,3.0128,166.03,165.87,7.44]
[1729530643580,7.44,166.02,165.87,7.44]
[1729530644091,10.49215467,166.02,165.87,7.44]
[1729530644295,1.2963,166.01,165.87,7.44]
[1729530644786,2.5786,166.0,165.87,7.44]
[1729530645583,2.5786,166.0,165.94,3.0143]
[1729530646584,2.5786,166.0,165.87,7.44]
[1729530646891,7.44,165.99,165.93,3.0146]
[1729530647884,7.44,165.99,165.92,3.0148]
[1729530648287,3.0138,165.98,165.87,7.44]
[1729530648482,3.0138,165.98,165.89,3.0153]
[1729530649388,7.44,165.99,165.82,7.44]
[1729530650176,3.0144,165.95,165.86,3.0158]
[1729530650380,7.44,165.94,165.81,7.44]
[1729530650583,7.44,165.93,165.75,65.12]
[1729530650884,7.44,165.92,165.76,7.44]
[1729530651090,9.9238,165.91,165.76,7.44]
[1729530651483,1.2943,165.9,165.8,3.017]
[1729530651684,2.97163883,165.89,165.8,3.017]
[1729530651884,3.0157,165.88,165.8,3.017]
[1729530652287,2.97163883,165.89,165.79,3.0171]
[1729530652488,3.016,165.86,165.79,3.0171]
[1729530652688,7.44,165.85,165.66,68.08420402]
[1729530652894,7.44,165.85,165.74,3.018]
[1729530653089,25.57,165.85,165.63,7.44]
[1729530653394,25.57,165.85,165.64,7.44]
[1729530653395,1.0,165.84,165.64,7.44]
[1729530653687,3.0174,165.78,165.64,7.44]
[1729530653987,9.9377,165.77,165.7,3.0187]
[1729530654194,12.9553,165.77,165.7,3.0187]
[1729530654787,9.9377,165.77,165.7,3.0187]
[1729530654992,12.9553,165.77,165.7,3.0187]
[1729530655496,9.9377,165.77,165.63,7.44]
[1729530656083,9.9377,165.77,165.67,3.0193]
[1729530656394,12.9553,165.77,165.63,7.44]
[1729530656592,9.9377,165.77,165.63,7.44]
[1729530656893,9.9377,165.77,165.67,3.0193]
[1729530656894,3.018,165.75,165.67,3.0193]
[1729530657393,1.3275,165.76,165.59,7.46]
[1729530657596,3.0182,165.74,165.57,65.14]
[1729530657893,7.46,165.73,165.57,72.6]
[1729530658089,7.46,165.73,165.64,3.0198]
[1729530658090,3.0185,165.72,165.64,3.0198]
[1729530658292,7.46,165.73,165.64,3.0198]
[1729530658695,3.0186,165.72,165.64,3.0198]
[1729530658889,3.02033168,165.78,165.57,72.6]
[1729530658890,7.46,165.87,165.62,7.46]
[1729530659090,2.5861,165.83,165.63,13.5]
[1729530659284,3.9136,165.83,165.64,7.46]
[1729530659890,6.9301,165.83,165.64,7.46]
[1729530660195,7.46,165.82,165.69,3.0189]
[1729530660499,7.46,165.82,165.64,7.46]
[1729530660789,3.0171,165.8,165.71,3.0185]
[1729530660997,7.46,165.82,165.64,7.46]
[1729530661290,3.018,165.75,165.66,3.0194]
[1729530661488,10.0563,165.74,165.6,7.46]
[1729530662293,10.0563,165.74,165.57,65.14]
[1729530663099,13.0745,165.74,165.65,3.0196]
[1729530663292,1.3373,165.73,165.65,3.0196]
[1729530663691,7.42,165.72,165.65,3.0196]
[1729530663890,1.3373,165.73,165.57,65.14]
[1729530663891,8.7573,165.73,165.57,65.14]
[1729530664496,8.7573,165.73,165.68,3.0191]
[1729530664688,8.7573,165.73,165.57,65.14]
[1729530665292,8.7573,165.73,165.67,3.0192]
[1729530665496,8.7573,165.73,165.57,65.14]
[1729530666299,1.0,165.81,165.63,6.0399]
[1729530666491,3.02813825,165.82,165.64,7.42]
[1729530666689,2.6438,165.83,165.64,7.42]
[1729530666894,2.6438,165.83,165.65,6.0395]
[1729530667100,2.6438,165.83,165.79,3.017]
[1729530667895,2.6438,165.83,165.71,7.42]
[1729530668197,2.6438,165.83,165.81,3.0168]
[1729530668603,2.6438,165.83,165.71,7.42]
[1729530668802,2.6438,165.83,165.82,3.0166]
[1729530668994,2.6438,165.83,165.67,13.4588]
[1729530669603,2.6438,165.83,165.76,3.0176]
[1729530669800,2.6438,165.83,165.67,13.4588]
[1729530670305,2.6438,165.83,165.68,1.2681]
[1729530670695,2.6438,165.83,165.77,3.0175]
[1729530671202,2.6438,165.83,165.68,1.2681]
[1729530671600,2.6438,165.83,165.76,3.0176]
[1729530672397,2.6438,165.83,165.72,3.0184]
[1729530672604,2.6438,165.83,165.68,1.2681]
[1729530672799,320.73467339,166.0,165.68,1.2681]
[1729530672998,1.281,165.91,165.68,1.2681]
[1729530673194,8.701,165.91,165.69,66.30913315]
[1729530673393,8.701,165.91,165.75,6.0357]
[1729530673603,8.701,165.91,165.76,7.42]
[1729530673604,3.00838251,165.9,165.76,7.42]
[1729530673999,3.00838251,165.9,165.84,3.0163]
[1729530674195,1.3021,165.9,165.76,7.42]
[1729530674400,1.3021,165.9,165.77,1.2464]
[1729530675902,1.3021,165.9,165.84,3.0162]
[1729530676098,1.3021,165.9,165.77,1.2464]
[1729530676408,1.3021,165.9,165.85,3.016]
[1729530677403,4.33727386,165.9,165.85,3.016]
[1729530678005,3.0132,166.02,165.95,3.0142]
[1729530678507,1.2858,166.01,165.87,7.42]
[1729530678714,3.04845029,166.0,165.96,3.0141]
[1729530679515,1.2858,166.01,165.97,3.0139]
[1729530680110,1.2858,166.01,165.88,1.3405]
[1729530680414,4.2991,166.01,165.88,1.3405]
[1729530680908,3.12441651,166.09,165.88,1.3405]
[1729530681112,13.56770941,166.09,165.88,1.3405]
[1729530681314,7.4,166.08,165.88,1.3405]
[1729530681515,3.0125,166.05,165.97,3.0137]
[1729530681815,1.2999,166.04,165.88,1.3405]
[1729530682218,1.3557,166.03,165.88,1.3405]
[1729530682412,7.4,166.02,165.88,1.3405]
[1729530683215,7.4,166.02,165.94,3.0143]
[1729530683415,7.4,166.02,165.88,1.3405]
[1729530683614,7.4,166.02,165.9,3.015]
[1729530684116,3.0139,165.98,165.91,3.0149]
[1729530684321,7.4,165.97,165.88,1.3405]
[1729530684721,65.14,166.19,165.89,7.4]
[1729530684918,1.2799,166.11,165.89,7.4]
[1729530685112,1.224,166.08,165.89,7.4]
[1729530685321,3.0124,166.06,165.98,3.0136]
[1729530685517,7.4,166.05,165.98,3.0136]
[1729530685715,7.4,166.05,165.89,7.4]
[1729530685919,3.0129,166.03,165.89,7.4]
[1729530686110,1.2799,166.02,165.89,7.4]
[1729530687122,1.2799,166.02,165.95,3.0141]
[1729530687316,1.2799,166.02,165.88,1.3405]
[1729530687317,3.0132,166.01,165.88,1.3405]
[1729530687619,7.4,166.0,165.88,1.3405]
[1729530687816,3.0137,165.99,165.88,1.3405]
[1729530688122,4.3631,165.99,165.88,1.3405]
[1729530688312,65.14,166.2,165.88,1.3405]
[1729530688517,7.84,166.13,165.88,1.3405]
[1729530688818,2.5727,166.08,165.88,1.3405]
[1729530689020,2.5727,166.08,165.99,3.0135]
[1729530689021,3.0123,166.06,165.99,3.0135]
[1729530689519,3.0123,166.06,166.0,3.0133]
[1729530689719,7.84,166.05,166.0,3.0133]
[1729530691021,7.84,166.05,166.01,3.0131]
[1729530691521,3.0128,166.04,165.98,3.0136]
[1729530691824,7.84,166.05,165.88,1.3405]
[1729530692323,7.84,166.05,165.93,3.0145]
[1729530692525,44.09,166.05,165.93,3.0145]
[1729530692715,44.09,166.05,165.88,1.3405]
[1729530692922,3.0137,165.99,165.94,3.0144]
[1729530693124,12.02173952,165.98,165.94,3.0144]
[1729530693325,3.0139,165.97,165.93,3.0145]
[1729530695221,10.3756,165.98,165.88,1.3405]
[1729530695429,10.3756,165.98,165.84,111.87671244]
[1729530695626,1.2304,165.97,165.84,111.87671244]
[1729530695825,3.0146,165.94,165.89,3.0152]
[1729530696123,1.2304,165.97,165.8,1.2792]
[1729530696327,3.0149,165.92,165.87,3.0156]
[1729530696524,7.84,165.91,165.87,3.0156]
[1729530696721,18.13,166.05,165.8,1.2792]
[1729530697031,12.24651651,166.09,165.81,7.84]
[1729530697227,15.1972888,166.09,165.81,7.84]
[1729530697528,3.0126,166.04,165.81,7.84]
[1729530697827,7.84,166.03,165.87,6.0314]
[1729530698024,7.84,166.03,165.88,9.1486]
[1729530698227,10.8528,166.03,165.92,3.0147]
[1729530698427,10.8528,166.03,165.88,9.1486]
[1729530699025,10.8528,166.03,165.96,3.014]
[1729530699723,10.8528,166.03,165.97,3.0139]
[1729530700131,10.8528,166.03,165.88,9.1486]
[1729530700330,3.12441651,166.09,165.88,9.1486]
[1729530700523,6.18832995,166.09,165.89,6.0307]
[1729530700719,7.52662995,166.09,165.89,6.0307]
[1729530700925,15.36662995,166.09,165.89,6.0307]
[1729530701227,33.49662995,166.09,165.88,1.3086]
[1729530701431,36.25,166.07,165.88,4.324]
[1729530701632,3.014,165.97,165.88,3.0154]
[1729530701820,12.12462573,165.96,165.8,1.3516]
[1729530702025,3.0135,166.0,165.8,1.3516]
[1729530702227,1.2252,165.99,165.8,4.41249837]
[1729530704040,1.2252,165.99,165.91,3.0149]
[1729530704329,7.84,165.98,165.82,7.84]
[1729530704538,3.0141,165.96,165.87,3.0156]
[1729530704832,1.2927,165.97,165.87,3.0156]
[1729530705135,3.0141,165.96,165.87,3.0156]
[1729530705432,3.0141,165.96,165.88,3.0155]
[1729530706332,3.0141,165.96,165.89,3.0153]
[1729530706828,1.2927,165.97,165.89,3.0153]
[1729530707033,3.0143,165.95,165.89,3.0153]
[1729530707638,9.1327,165.97,165.82,7.84]
[1729530707933,1.2252,165.99,165.82,7.84]
[1729530708126,2.6547,166.05,165.82,25.96]
[1729530708326,3.9929,166.05,165.83,18.12]
[1729530708533,3.9929,166.05,165.82,7.84]
[1729530709326,36.25,166.04,165.8,120.03611765]
[1729530709729,37.25,166.04,165.8,120.03611765]
[1729530709931,3.0144,165.95,165.88,3.0155]
[1729530710130,7.84,165.94,165.8,120.03611765]
[1729530710338,7.84,165.93,165.8,120.03611765]
[1729530710533,7.84,165.93,165.83,3.0163]
[1729530710730,7.84,165.93,165.8,120.03611765]
[1729530711038,7.84,165.93,165.8,112.19611765]
[1729530712343,3.0155,165.89,165.8,112.19611765]
[1729530712730,3.0152,165.9,165.83,3.0164]
[1729530714442,44.09,165.93,165.73,1.288]
[1729530714835,3.0169,165.81,165.75,3.0178]
[1729530715138,7.84,165.8,165.75,3.0178]
[1729530715737,7.84,165.8,165.72,3.0183]
[1729530716043,2.99582699,165.83,165.67,1.288]
[1729530716339,3.0173,165.79,165.72,3.0183]
[1729530717041,3.0175,165.78,165.73,3.0182]
[1729530720138,2.96689378,165.81,165.73,3.0182]
[1729530720335,7.84,165.82,165.74,3.018]
[1729530720935,10.9048503,165.82,165.74,3.018]
[1729530721948,3.0174,165.78,165.74,3.018]
[1729530723141,3.0648503,165.82,165.67,1.288]
[1729530723349,7.68,165.81,165.67,8.968]
[1729530723647,7.68,165.83,165.67,8.968]
[1729530724237,6.89298328,165.86,165.81,3.0167]
[1729530724447,1.2648,165.86,165.73,7.68]
[1729530724743,7.68,165.89,165.77,3.0174]
[1729530724940,7.68,165.89,165.78,1.3242]
[1729530725352,7.68,165.89,165.84,3.0162]
[1729530725741,7.68,165.89,165.78,1.3242]
[1729530725945,3.0159,165.87,165.8,3.0169]
[1729530726147,7.68,165.89,165.73,7.68]
[1729530726342,3.0164,165.84,165.77,3.0175]
[1729530726544,7.68,165.83,165.74,1.321]
[1729530727156,10.6965,165.83,165.77,3.0175]
[1729530727653,7.68,165.83,165.77,3.0175]
[1729530728141,7.68,165.83,165.74,1.321]
[1729530728342,3.0169,165.81,165.75,3.0179]
[1729530728545,3.0169,165.81,165.69,7.68]
[1729530728739,7.68,165.83,165.69,7.68]
[1729530728942,7.68,165.83,165.68,1.2994]
[1729530729551,7.68,165.83,165.62,6.0403]
[1729530729846,7.68,165.83,165.66,1.2994]
[1729530730549,3.0175,165.78,165.72,3.0183]
[1729530730843,7.68,165.77,165.72,3.0183]
[1729530732849,7.68,165.77,165.66,1.2994]
[1729530733149,7.68,165.77,165.75,3.0177]
[1729530733449,3.0169,165.81,165.66,1.2994]
[1729530733450,7.68,165.81,165.66,1.2994]
[1729530733650,1.3482,165.8,165.66,1.2994]
[1729530734048,3.0175,165.77,165.71,3.0185]
[1729530734452,3.0175,165.77,165.66,1.2994]
[1729530734854,3.0175,165.77,165.69,3.0189]
[1729530735054,3.0175,165.77,165.66,1.2994]
[1729530736143,3.0178,165.76,165.66,1.2994]
[1729530736551,3.0178,165.76,165.7,3.0188]
[1729530737252,1.3482,165.8,165.66,1.2994]
[1729530737765,3.0175,165.77,165.71,3.0185]
[1729530737952,3.01152432,165.77,165.66,1.2994]
[1729530738259,3.0174,165.78,165.72,3.0183]
[1729530738654,1.3482,165.8,165.66,1.2994]
[1729530738858,10.3573,165.79,165.77,1.0]
[1729530739451,10.3572,165.79,165.77,1.0]
[1729530739663,7.34,165.79,165.77,1.0]
[1729530740056,3.0174,165.78,165.77,1.0]
[1729530740355,7.34,165.79,165.66,1.2994]
[1729530740557,3.018,165.75,165.7,3.0188]
[1729530740762,3.018,165.75,165.66,1.2994]
[1729530741254,5.99402434,165.77,165.72,3.0184]
[1729530741563,3.00560758,165.77,165.66,1.2994]
[1729530741754,7.34,165.79,165.66,1.2994]
[1729530742755,3.0177,165.76,165.71,3.0185]
[1729530743358,3.0179,165.75,165.71,3.0185]
[1729530743553,2.97674108,165.77,165.61,7.34]
[1729530743554,7.34,165.74,165.61,7.34]
[1729530743757,8.6232,165.74,165.61,7.34]
[1729530743963,3.0188,165.71,165.64,3.0197]
[1729530744260,8.6232,165.74,165.61,7.34]
[1729530744463,3.0186,165.71,165.66,3.0195]
[1729530744761,8.6232,165.74,165.6,7.34]
[1729530744957,3.0188,165.71,165.66,3.0194]
[1729530745356,8.6232,165.74,165.6,7.34]
[1729530745958,8.6232,165.74,165.59,2.6812]
[1729530747559,3.0189,165.7,165.64,3.0198]
[1729530747964,1.3178,165.69,165.67,3.0193]
[1729530748162,1.3178,165.69,165.59,2.6812]
[1729530748755,4.3368,165.69,165.63,3.02]
[1729530749068,1.3178,165.69,165.59,2.6812]
[1729530749475,1.3178,165.69,165.65,3.0197]
[1729530749762,1.3178,165.69,165.55,7.0]
[1729530749763,8.3178,165.69,165.55,7.0]
[1729530749971,3.0197,165.66,165.6,3.0205]
[1729530750261,3.0197,165.66,165.54,9.6269]
[1729530750262,6.02041674,165.66,165.54,9.6269]
[1729530750664,3.0197,165.66,165.6,3.0205]
[1729530750875,3.0198,165.65,165.54,9.6269]
[1729530751362,3.09313942,165.67,165.54,9.6269]
[1729530751558,1.2374,165.68,165.56,6.0428]
[1729530752067,8.3178,165.69,165.56,6.0428]
[1729530752568,8.3178,165.69,165.63,3.02]
[1729530753769,11.3368,165.69,165.56,6.0428]
[1729530753966,11.3368,165.69,165.64,3.0199]
[1729530754967,1.3178,165.69,165.68,3.0192]
[1729530756170,1.3178,165.69,165.64,3.0]
[1729530756470,1.3178,165.69,165.67,3.0193]
[1729530757671,1.3178,165.69,165.64,5.0]
[1729530757872,2.94748846,165.68,165.64,5.0]
[1729530758073,7.0,165.67,165.64,6.0]
[1729530758274,7.0,165.67,165.64,10.0198]
[1729530758773,7.0,165.67,165.64,11.0198]
[1729530759178,7.0,165.67,165.64,12.0198]
[1729530759474,7.0,165.67,165.64,13.0198]
[1729530759972,7.0,165.67,165.64,11.0]
[1729530760173,7.0,165.67,165.64,12.0]
[1729530760574,7.0,165.67,165.64,16.0198]
[1729530761077,7.0,165.67,165.64,17.0198]
[1729530761376,7.0,165.67,165.64,18.0198]
[1729530761773,7.0,165.67,165.64,19.0198]
[1729530761977,7.0,165.67,165.64,3.0198]
[1729530762485,7.0,165.67,165.64,4.0198]
[1729530763078,7.0,165.67,165.66,3.0195]
[1729530763477,7.0,165.67,165.64,1.0]
[1729530763873,7.0,165.67,165.64,2.0]
[1729530764080,7.0,165.67,165.66,3.0195]
[1729530764386,7.0,165.67,165.64,3.0]
[1729530764585,7.0,165.67,165.64,4.0]
[1729530764885,7.0,165.67,165.65,3.0196]
[1729530766278,1.3178,165.69,165.68,3.0192]
[1729530766483,2.97674108,165.77,165.64,7.0]
[1729530766683,8.3251,165.76,165.64,8.3108]
[1729530766881,2.99836052,165.75,165.72,3.0184]
[1729530767575,2.99836052,165.75,165.67,3.0193]
[1729530767779,2.99836052,165.75,165.65,6.0394]
[1729530768382,2.99836052,165.75,165.68,3.0192]
[1729530768578,2.99836052,165.75,165.65,6.0394]
[1729530769190,8.3251,165.76,165.65,6.0394]
[1729530769384,8.3251,165.76,165.65,13.0394]
[1729530769887,11.34641188,165.76,165.68,3.0191]
[1729530770089,11.34641188,165.76,165.65,13.0394]
[1729530771194,11.34641188,165.76,165.66,6.039]
[1729530771195,1.3251,165.76,165.66,6.039]
[1729530773093,1.3251,165.76,165.74,3.018]
[1729530774991,1.3251,165.76,165.65,7.0]
[1729530775184,1.3251,165.76,165.64,8.9708]
[1729530776282,3.018,165.75,165.7,3.0188]
[1729530776790,3.018,165.75,165.69,3.0188]
[1729530777190,3.018,165.75,165.64,8.9708]
[1729530777393,1.3251,165.76,165.7,3.0188]
[1729530777593,4.3429,165.76,165.7,3.0188]
[1729530777797,4.3429,165.76,165.64,8.9708]
[1729530778491,1.3251,165.76,165.64,8.9708]
[1729530778997,1.3251,165.76,165.72,3.0183]
[1729530780292,1.3251,165.76,165.73,3.0182]
[1729530781200,1.3251,165.76,165.64,8.9708]
[1729530781892,3.0179,165.75,165.71,3.0185]
[1729530782492,1.3251,165.76,165.75,3.0179]
[1729530782692,1.3251,165.76,165.65,6.0392]
[1729530784297,1.3251,165.76,165.67,1.0]
[1729530784799,1.3251,165.76,165.72,3.0183]
[1729530785200,1.3251,165.76,165.73,3.0182]
[1729530785497,3.0179,165.75,165.67,1.0]
[1729530785698,1.3251,165.76,165.67,1.0]
[1729530786100,3.0182,165.74,165.67,1.0]
[1729530786302,6.66,165.73,165.71,3.0185]
[1729530787200,6.66,165.73,165.72,3.0184]
[1729530792403,6.66,165.73,165.67,1.0]
[1729530792802,2.6617,165.72,165.67,1.0]
[1729530793201,3.0187,165.71,165.67,1.0]
[1729530793602,2.6617,165.72,165.67,1.0]
[1729530794606,2.6617,165.72,165.66,1.0]
[1729530794807,3.0193,165.68,165.65,1.0]
[1729530795104,6.34,165.67,165.65,1.0]
[1729530795504,6.34,165.67,165.66,3.0195]
[1729530796910,6.34,165.67,165.65,1.0]
[1729530797305,6.34,165.67,165.64,3.0198]
[1729530797507,9.3594,165.67,165.63,3.02]
[1729530799814,6.34,165.66,165.63,3.02]
[1729530800017,6.34,165.66,165.65,3.0197]
[1729530800909,2.6617,165.72,165.56,7.5693]
[1729530801113,6.34,165.71,165.56,7.5693]
[1729530801312,6.34,165.75,165.57,1.51067796]
[1729530801521,6.34,165.75,165.74,1.0]
[1729530801817,9.32784335,165.75,165.74,2.0]
[1729530802119,3.0172,165.79,165.74,5.0181]
[1729530802314,6.34,165.78,165.74,6.0181]
[1729530802614,6.34,165.78,165.75,3.0179]
[1729530803010,6.34,165.78,165.75,3.0177]
[1729530803215,3.017,165.8,165.75,3.0177]
[1729530803412,6.34,165.79,165.75,3.0177]
[1729530803915,65.22,165.82,165.74,5.0]
[1729530804115,6.34,165.81,165.78,3.0172]
[1729530804415,6.34,165.81,165.74,5.0]
[1729530804616,6.34,165.81,165.79,3.0171]
[1729530806219,6.34,165.81,165.74,1.0]
[1729530806521,9.3568,165.81,165.77,3.0174]
[1729530806817,6.34,165.81,165.77,3.0174]
[1729530807121,6.34,165.81,165.74,1.0]
[1729530807715,3.0175,165.78,165.74,4.018]
[1729530808117,3.0175,165.78,165.74,1.0]
[1729530808919,3.0175,165.78,165.75,3.0179]
[1729530809323,24.47,165.81,165.74,1.0]
[1729530809516,42.59,165.81,165.71,1.0]
[1729530809711,42.59,165.81,165.64,3.7638]
[1729530809918,3.0186,165.71,165.64,1.2381]
[1729530810214,6.34,165.7,165.58,14.8983]
[1729530810516,6.34,165.7,165.59,1.3277]
[1729530810717,9.39532149,165.7,165.59,1.3277]
[1729530811513,3.0192,165.68,165.64,3.0197]
[1729530812119,9.39532149,165.7,165.59,1.3277]
[1729530812318,3.0195,165.67,165.65,1.0]
[1729530814124,3.0195,165.66,165.65,1.0]
[1729530815126,3.9178,165.69,165.64,1.0]
[1729530815427,22.0478,165.69,165.61,0.10000001]
[1729530815626,25.05860585,165.69,165.61,0.10000001]
[1729530815826,3.0202,165.63,165.61,0.10000001]
[1729530816027,6.34,165.62,165.61,0.10000001]
[1729530817025,9.3604,165.62,165.58,3.0209]
[1729530817229,6.34,165.62,165.54,1.3564]
[1729530817628,3.0206,165.61,165.57,3.0211]
[1729530819031,3.0213,165.57,165.49,1.2968]
[1729530819230,6.02,165.56,165.49,1.2968]
[1729530820527,6.02,165.56,165.51,3.0223]
[1729530821333,9.0415,165.56,165.5,3.0224]
[1729530821734,6.02,165.56,165.45,1.2432]
[1729530821923,3.0217,165.54,165.45,1.2432]
[1729530822129,6.02,165.56,165.45,1.2432]
[1729530822524,3.0216,165.55,165.5,3.0224]
[1729530822932,6.02,165.56,165.45,1.2432]
[1729530823136,6.02,165.56,165.51,3.0222]
[1729530823732,6.02,165.56,165.45,1.2432]
[1729530823928,3.01111213,165.57,165.45,1.2432]
[1729530823929,6.02,165.57,165.56,3.0214]
[1729530824228,6.02,165.57,165.47,6.02]
[1729530825030,2.6263,165.65,165.48,6.0457]
[1729530825230,6.02,165.64,165.48,6.0457]
[1729530825431,6.02,165.64,165.47,6.02]
[1729530825836,6.02,165.64,165.49,6.0453]
[1729530826433,6.02,165.64,165.6,3.0205]
[1729530830542,6.02,165.64,165.63,3.0201]
[1729530830938,4.35710585,165.69,165.63,3.0201]
[1729530831138,6.02,165.65,165.54,9.8322]
[1729530831341,6.02,165.65,165.54,3.7889]
[1729530831544,6.02,165.65,165.64,3.0199]
[1729530831947,9.03080585,165.69,165.68,3.0192]
[1729530832740,9.03080585,165.69,165.67,3.0193]
[1729530835346,9.03080585,165.69,165.58,6.02]
[1729530835547,10.36320585,165.69,165.54,3.7889]
[1729530836248,3.0194,165.67,165.62,3.0202]
[1729530836844,9.03080585,165.69,165.54,3.7889]
[1729530837545,9.03080585,165.69,165.57,6.0423]
[1729530838146,9.03080585,165.69,165.64,3.0198]
[1729530838950,12.04980585,165.69,165.64,3.0198]
[1729530839347,12.04990585,165.69,165.64,3.0199]
[1729530839544,9.03080585,165.69,165.57,6.0423]
[1729530839746,9.03080585,165.69,165.57,66.0423]
[1729530840447,9.03080585,165.69,165.63,3.0199]
[1729530840448,12.04990585,165.69,165.63,3.0199]
[1729530840653,12.04990585,165.69,165.57,66.0423]
[1729530840844,12.04990585,165.69,165.63,3.0199]
[1729530841044,9.03080585,165.69,165.57,60.0]
[1729530841453,3.0195,165.67,165.62,3.0202]
[1729530844057,3.0195,165.67,165.57,60.0]
[1729530844358,9.03080585,165.69,165.57,60.0]
[1729530845155,12.04990585,165.69,165.64,3.0197]
[1729530845655,6.02,165.68,165.66,3.0194]
[1729530846051,6.02,165.68,165.57,66.02]
[1729530846247,6.02,165.68,165.58,6.042]
[1729530846958,6.02,165.68,165.67,3.0194]
[1729530849156,3.0686264,165.69,165.68,3.0192]
[1729530850957,5.7,165.7,165.69,3.019]
[1729530851153,1.2493,165.77,165.62,8.6489448]
[1729530851349,7.2782698,165.77,165.63,2.5221]
[1729530851561,5.7,165.76,165.72,3.0183]
[1729530851769,8.75736854,165.76,165.72,3.0183]
[1729530852449,8.75736854,165.76,165.63,2.5221]
[1729530853061,5.7,165.75,165.72,3.0183]
[1729530853562,5.7,165.75,165.65,6.0392]
[1729530854960,3.05736854,165.76,165.75,3.0179]
[1729530854961,8.75736854,165.76,165.75,3.0179]
[1729530855159,5.7,165.76,165.75,3.0179]
[1729530855865,8.79492333,165.76,165.74,3.0181]
[1729530857258,8.79492333,165.76,165.68,3.0191]
[1729530857463,8.79492333,165.76,165.65,6.0392]
[1729530858064,8.79492333,165.76,165.74,3.0179]
[1729530858762,8.79492333,165.76,165.65,6.0392]
[1729530859162,8.79492333,165.76,165.72,3.0183]
[1729530860564,3.09492333,165.76,165.72,3.0183]
[1729530860765,5.7,165.75,165.72,3.0183]
[1729530861066,8.65838954,165.75,165.73,3.0182]
[1729530862663,8.65838954,165.75,165.68,3.0192]
[1729530862868,8.65838954,165.75,165.63,2.5221]
[1729530863263,3.0182,165.74,165.69,3.0189]
[1729530863964,3.0182,165.74,165.63,2.5221]
[1729530864161,3.0182,165.74,165.7,3.0188]
[1729530864364,11.67638954,165.75,165.7,3.0188]
[1729530864769,8.65838954,165.75,165.7,3.0188]
[1729530865170,1.3219,165.74,165.68,3.0191]
[1729530865468,2.5632,165.74,165.68,3.0191]
[1729530866067,3.0185,165.72,165.68,3.0191]
[1729530866962,3.0188,165.71,165.67,3.0192]
[1729530867164,5.7,165.7,165.63,2.5221]
[1729530867567,5.7,165.7,165.67,3.0192]
[1729530868072,5.7,165.7,165.66,3.0194]